Workbook

Sheet 2020年全区海绵城市建设目标完成情况表
A1: 附件4
A2: 2020年广西海绵城市建设目标完成情况表
A4: 序号 | B4: 城市 | C4: 2019年建成区面积（k㎡） | D4: 2019年已实现海绵面积（k㎡） | E4: 2020年计划新增海绵面积（k㎡） | F4: 2020年底合计完成海绵面积（k㎡） | G4: 2020年建成区海绵城市目标完成率（%） | H4: 备注
A5: 1 | B5: 南宁市 | C5: 319.69 | D5: 54.60 | E5: 9.97 | F5: =D5+E5 -> 64.57 | G5: =F5/C5*100 -> 20.20 | K5: 未上报2020年工作计划
A6: 2 | B6: 柳州市 | C6: 240.23 | D6: 36.05 | E6: 13.45 | F6: 49.50 | G6: =F6/C6*100 -> 20.61 | K6: 已上报2020年计划但不能支撑今年目标
A7: 3 | B7: 桂林市 | C7: 128.13 | D7: 11.89 | E7: 0.43 | F7: 12.32 | G7: 9.62 | H7: 不能完成今年目标
A8: 4 | B8: 梧州市 | C8: 66.34 | D8: 9.32 | E8: 4.09 | F8: 13.41 | G8: 20.22
A9: 5 | B9: 北海市 | C9: 85.97 | D9: 18.00 | E9: 0.00 | F9: 18.00 | G9: 20.94
A10: 6 | B10: 防城港市 | C10: 50.73 | D10: 10.20 | E10: 0.19 | F10: 10.39 | G10: 20.49
A11: 7 | B11: 钦州市 | C11: 90.51 | D11: 11.40 | E11: 6.70 | F11: 18.10 | G11: 20.00
A12: 8 | B12: 贵港市 | C12: 86.09 | D12: 7.49 | E12: 10.48 | F12: 17.97 | G12: 20.87
A13: 9 | B13: 玉林市 | C13: 76.50 | D13: 10.50 | E13: 0.00 | F13: 10.50 | G13: 13.73 | H13: 不能完成今年目标
A14: 10 | B14: 百色市 | C14: 55.32 | D14: 5.33 | E14: 0.00 | F14: 5.33 | G14: 9.63 | H14: 不能完成今年目标
A15: 11 | B15: 贺州市 | C15: 54.74 | D15: 8.76 | E15: 2.19 | F15: 10.95 | G15: 20.00
A16: 12 | B16: 河池市 | C16: 26.50 | D16: 2.51 | E16: 2.79 | F16: 5.30 | G16: 20.00
A17: 13 | B17: 来宾市 | C17: 51.92 | D17: 5.17 | E17: 5.23 | F17: 10.40 | G17: 20.03
A18: 14 | B18: 崇左市 | C18: 38.00 | D18: 3.67 | E18: 3.99 | F18: 7.66 | G18: 20.16
A19: 15 | B19: 岑溪市 | C19: 22.60 | D19: 2.60 | E19: 0.00 | F19: 2.60 | G19: 11.50 | H19: 不能完成今年目标
A20: 16 | B20: 东兴市 | C20: 13.30 | D20: 2.47 | E20: 0.20 | F20: 2.67 | G20: 20.06
A21: 17 | B21: 桂平市 | C21: 37.60 | F21: 0.00 | G21: 0.00 | H21: 未上报
A22: 18 | B22: 北流市 | C22: 28.70 | F22: 0.00 | G22: 0.00 | H22: 未上报
A23: 19 | B23: 合山市 | C23: 7.54 | D23: 0.00 | E23: 0.07 | F23: 0.07 | G23: 0.93 | H23: 未上报
A24: 20 | B24: 凭祥市 | C24: 13.11 | D24: 2.58 | E24: 0.10 | F24: 2.68 | G24: 20.40
A25: 21 | B25: 靖西市 | C25: 20.00 | D25: 2.34 | E25: 0.00 | F25: 2.34 | G25: 11.70 | H25: 不能完成今年目标
A26: 22 | B26: 宜州市 | C26: 18.39 | D26: 0.00 | E26: 0.28 | F26: 0.28 | G26: 1.50 | H26: 现河池市宜州区，宜州市16年撤市设区，尚在过渡期中，暂按县级市单独考核，不能完成今年目标
A27: 备注： | B27: 1.2020年计划新增海绵面积需与2020年广西海绵城市建设计划表（附件3）对应，并且需确保是2020年12月31日前能完成的项目。
B28: 2.请各市认真核对附件3和附件4并及时反馈，有修改的地方请标红，并将可编辑的电子版原表于8月20日前反馈至我厅城建处。

Sheet 2019年海绵城市建设计划 (hidden)
A1: 2019年全区海绵城市建设计划及完成表
A3: 序号 | B3: 城市 | C3: 建成区面积（k㎡） | D3: 2019年已实现海绵面积（k㎡） | E3: 计划新增海绵面积（k㎡） | F3: 计划2020年完成海绵面积（k㎡） | G3: 2020年底合计完成海绵面积（k㎡） | H3: 2020年建成区海绵完成率（%） | I3: 按计划建成区海绵完成率（%） | J3: 备注
A4: 1 | B4: 南宁市 | C4: 289.300 | D4: 51.900 | E4: 14.465 | F4: =E4 -> 14.465 | G4: =D4+F4 -> 66.365 | H4: =G4/C4*100 -> 22.940 | I4: =(E4+D4)/C4*100 -> 22.940
A5: 2 | B5: 柳州市 | C5: 225.090 | D5: 25.190 | E5: 11.250 | F5: 1.040 | G5: =D5+F5 -> 26.230 | H5: =G5/C5*100 -> 11.653 | I5: =(E5+D5)/C5*100 -> 16.189
A6: 3 | B6: 桂林市 | C6: 110.270 | D6: 11.890 | E6: 4.650 | G6: =D6+F6 -> 11.890 | H6: 10.783 | I6: 15.000
A7: 4 | B7: 梧州市 | C7: 57.190 | D7: 5.730 | E7: 2.850 | F7: 0.047 | G7: 5.777 | H7: 10.101 | I7: 15.003
A8: 5 | B8: 北海市 | C8: 77.260 | D8: 8.590 | E8: 3.000 | F8: 0.000 | G8: 8.590 | H8: 11.118 | I8: 15.001
A9: 6 | B9: 防城港市 | C9: 41.380 | D9: 4.230 | E9: 1.980 | F9: 0.000 | G9: 4.230 | H9: 10.222 | I9: 15.007
A10: 7 | B10: 钦州市 | C10: 90.510 | D10: 10.880 | E10: 4.500 | F10: =E10 -> 4.500 | G10: 15.380 | H10: 16.993 | I10: 16.993
A11: 8 | B11: 贵港市 | C11: 73.230 | D11: 7.490 | E11: 3.600 | F11: 7.499 | G11: =D11+F11 -> 14.989 | H11: =G11/C11*100 -> 20.468 | I11: 15.144
A12: 9 | B12: 玉林市 | C12: 70.100 | D12: 7.100 | E12: 3.500 | F12: 0.000 | G12: =D12+F12 -> 7.100 | H12: =G12/C12*100 -> 10.128 | I12: 15.121
A13: 10 | B13: 百色市 | C13: 49.080 | D13: 5.330 | E13: 2.450 | F13: 0.000 | G13: =D13+F13 -> 5.330 | H13: =G13/C13*100 -> 10.860 | I13: 15.852
A14: 11 | B14: 贺州市 | C14: 31.430 | D14: 3.200 | E14: 1.510 | F14: =E14 -> 1.510 | G14: =D14+F14 -> 4.710 | H14: =G14/C14*100 -> 14.986 | I14: 14.986
A15: 12 | B15: 河池市 | C15: 23.800 | D15: 2.510 | E15: 1.190 | F15: 0.026 | G15: =D15+F15 -> 2.536 | H15: =G15/C15*100 -> 10.655 | I15: 15.546 | J15: 建议建成区面积不含宜州区
A16: 13 | B16: 来宾市 | C16: 43.100 | D16: 4.370 | E16: 2.100 | G16: 4.370 | H16: 10.139 | I16: 15.012
A17: 14 | B17: 崇左市 | C17: 35.000 | D17: 3.670 | E17: 1.580 | F17: 0.528 | G17: =D17+F17 -> 4.198 | H17: =G17/C17*100 -> 11.994 | I17: 15.000
C18: =SUM(C4:C17) -> 1216.740 | D18: =SUM(D4:D17) -> 152.080 | E18: =SUM(E4:E17) -> 58.625
